Workbook

Sheet Лист1
A1: Отчет
A2: о результатах мониторинга качества финансового менеджмента, осуществляемого главными администраторами средств районного бюджета
A3: за 2018 год
A5: № | B5: Наименование главного администратора средств районного бюджета | C5: КВСР | D5: 1.1. Своевременность представления предварительного (планового) реестра расходных обязательств | F5: 1.2. Полнота информации о расходных обязательствах | H5: 1.3. Сроки представления обоснований бюджетных ассигнований на очередной финансовый год | J5: 1.4. Охват в обоснованиях бюджетных ассигнований на очередной финансовый год | L5: 1.5. Доля бюджетных ассигнований, представленных в программном виде | N5: 1.6. Сумма внесенных изменений в бюджетную роспись в связи с уточнением ассигнований по решению Земского собрания | R5: 1.7. Сумма внесенных положительных изменений в бюджетную роспись в отчетном периоде в связи с передвижками между кодами бюджетной классификации | T5: 1. Финансовое планирование | V5: 2.1. Кассовое исполнение расходов | X5: 2.2. Равномерность осуществляемых расходов | Z5: 2.3. Своевременность принятия бюджетных обязательств | AB5: 2.4. Качество прогнозирования кассовых расходов | AD5: 2.5. Уровень подготовки платежных документов | AF5: 2.6. Качество исполнения расходов | AG5: 2. Исполнение бюджета в части расходов | AI5: 3.1. Качество правовой базы главного администратора доходов районного бюджета по администрированию доходов | AJ5: 3.2. Полнота зачисления платежей в районный бюджет по главному администратору доходов районного бюджета, объем невыясненных поступлений | AL5: 3.3. Отклонение кассового исполнения по доходам от прогноза по главному администратору доходов районного бюджета | AN5: 3.4. Эффективность управления дебиторской задолженностью по расчетам с дебиторами по доходам | AP5: 3.Исполнение бюджета в части доходов | AR5: 4.1. Подготовка и внедрение управленческого учета | AS5: 4.2. Динамика объема материальных запасов | AU5: 4.3. Коэффициент сложности исполнения бюджетных ассигнований | AW5: 4. Учет и отчетность | AY5: 5.1. Осуществление мероприятий внутреннего контроля | AZ5: 5.2. Регулярность проведения ГРБС мероприятий муниципального контроля | BB5: 5.3. Доля недостач и хищений денежных средств и материальных ценностей | BD5: 5. Контроль и аудит | BF5: 6.1. Качество исполнения бюджетных обязательств | BH5: 6. Исполнение судебных актов | BJ5: 7.1. Исполнение планов финансово-хозяйственной деятельности (далее-ФХД) по доходам (по всем видам финансового обеспечения) | BL5: 7.2. Равномерность расходов, осуществляемых бюджетными и автономными учреждениями за счет субсидий на выполнение муниципальных заданий | BN5: 7.3. Уровень использования субсидий бюджетными и автономными учреждениями, предоставленных на выполнение муниципального заданий | BP5: 7.4. Уровень подготовки платежных документов бюджетными и автономными учреждениями | BR5: 7.5. Качество осуществления расходов бюджетными и автономными учреждениями | BS5: 7. Бюджетные и автономные учреждения | BU5: И Т О Г О по главному администратору средств районного бюджета
N6: положительных | P6: отрицательных
D7: значение показателя | E7: количество баллов | F7: значение показателя | G7: количество баллов | H7: значение показателя | I7: количество баллов | J7: значение показателя | K7: количество баллов | L7: значение показателя | M7: количество баллов | N7: значение показателя | O7: количество баллов | P7: значение показателя | Q7: количество баллов | R7: значение показателя | S7: количество баллов | T7: значение показателя | U7: количество баллов | V7: значение показателя | W7: количество баллов | X7: значение показателя | Y7: количество баллов | Z7: значение показателя | AA7: количество баллов | AB7: значение показателя | AC7: количество баллов | AD7: значение показателя | AE7: количество баллов | AF7: количество баллов | AG7: значение показателя | AH7: количество баллов | AI7: количество баллов | AJ7: значение показателя | AK7: количество баллов | AL7: значение показателя | AM7: количество баллов | AN7: значение показателя | AO7: количество баллов | AP7: значение показателя | AQ7: количество баллов | AR7: количество баллов | AS7: значение показателя | AT7: количество баллов | AU7: значение показателя | AV7: количество баллов | AW7: значение показателя | AX7: количество баллов | AY7: количество баллов | AZ7: значение показателя | BA7: количество баллов | BB7: значение показателя | BC7: количество баллов | BD7: значение показателя | BE7: количество баллов | BF7: значение показателя | BG7: количество баллов | BH7: значение показателя | BI7: количество баллов | BJ7: значение показателя | BK7: количество баллов | BL7: значение показателя | BM7: количество баллов | BN7: значение показателя | BO7: количество баллов | BP7: значение показателя | BQ7: количество баллов | BR7: количество баллов | BS7: значение показателя | BT7: количество баллов | BU7: количество баллов | BV7: max возможная сумма баллов | BW7: Общий показатель качества финансового менеджмента главного администратра средств районного бюджета (гр.59/гр.60)*100%
A8: 1 | B8: 2 | C8: 3 | D8: 4 | E8: 5 | F8: 6 | G8: 7 | H8: 8 | I8: 9 | J8: 10 | K8: 11 | L8: 12 | M8: 13 | N8: 14 | O8: 15 | P8: 16 | Q8: 17 | R8: 18 | S8: 19 | T8: 20 | U8: 21 | V8: 22 | W8: 23 | X8: 24 | Y8: 25 | Z8: 26 | AA8: 27 | AB8: 28 | AC8: 29 | AD8: 30 | AE8: 31 | AF8: 32 | AG8: 33 | AH8: 34 | AI8: 35 | AJ8: 36 | AK8: 37 | AL8: 38 | AM8: 39 | AN8: 40 | AO8: 41 | AP8: 42 | AQ8: 43 | AR8: 44 | AS8: 45 | AT8: 46 | AU8: 47 | AV8: 48 | AW8: 49 | AX8: 50 | AY8: 51 | AZ8: 52 | BA8: 53 | BB8: 54 | BC8: 55 | BD8: 56 | BE8: 57 | BF8: 58 | BG8: 59 | BH8: 60 | BI8: 61 | BJ8: 62 | BK8: 63 | BL8: 64 | BM8: 65 | BN8: 66 | BO8: 67 | BP8: 68 | BQ8: 69 | BR8: 70 | BS8: 71 | BT8: 72 | BU8: 73 | BV8: 74 | BW8: 75
B9: 1 группа
A10: 1 | B10: Администрация района | C10: 487 | D10: 0 | E10: 5 | F10: 0 | G10: 5 | H10: 0 | I10: 5 | J10: 100 | K10: 5 | L10: 58.9 | M10: 0 | N10: 94.3 | O10: 8 | P10: 103.3 | Q10: 4 | R10: 98.7 | S10: 10 | T10: =D10+F10+H10+J10+L10+N10+P10+R10 -> 455.2 | U10: =E10+G10+I10+K10+M10+O10+Q10+S10 -> 42 | V10: 99.8 | W10: 10 | X10: 27.4 | Y10: 10 | Z10: 100 | AA10: 10 | AB10: 99.8 | AC10: 10 | AD10: 97.6 | AE10: 7 | AF10: 10 | AG10: =V10+X10+Z10+AB10+AD10 -> 424.6 | AH10: =W10+Y10+AA10+AC10+AE10+AF10 -> 57 | AI10: 8 | AJ10: 0 | AK10: 5 | AL10: -22.7 | AM10: 0 | AN10: 225.1 | AO10: 0 | AP10: =AJ10+AL10+AN10 -> 202.4 | AQ10: =AI10+AK10+AM10+AO10 -> 13 | AR10: 10 | AS10: 97.3 | AT10: 0 | AU10: 55 | AV10: 3 | AW10: =AS10+AU10 -> 152.3 | AX10: =AR10+AT10+AV10 -> 13 | AY10: 5 | AZ10: 1 | BA10: 5 | BB10: 0 | BC10: 5 | BD10: =AZ10+BB10 -> 1 | BE10: =AY10+BA10+BC10 -> 15 | BF10: 0 | BG10: 5 | BH10: =BF10 -> 0 | BI10: =BG10 -> 5 | BJ10: 98.9 | BK10: 8 | BL10: 20.4 | BM10: 10 | BN10: 99.4 | BO10: 10 | BP10: 96.7 | BQ10: 7 | BR10: 8.7 | BS10: =BJ10+BL10+BN10+BP10 -> 315.4 | BT10: =BK10+BM10+BO10+BQ10+BR10 -> 43.7 | BU10: =U10+AH10+AQ10+AX10+BE10+BI10+BT10 -> 188.7 | BV10: 255 | BW10: =SUM(BU10/BV10)*100 -> 74
A11: 2 | B11: Управление образования и молодежной политики | C11: 074 | D11: 0 | E11: 5 | F11: 0 | G11: 5 | H11: 0 | I11: 5 | J11: 100 | K11: 5 | L11: 99.9 | M11: 10 | N11: 97.5 | O11: 10 | P11: 100.4 | Q11: 4 | R11: 98 | S11: 10 | T11: =D11+F11+H11+J11+L11+N11+P11+R11 -> 495.8 | U11: =E11+G11+I11+K11+M11+O11+Q11+S11 -> 54 | V11: 99.6 | W11: 10 | X11: 21.8 | Y11: 10 | Z11: 99.2 | AA11: 10 | AB11: 99.6 | AC11: 10 | AD11: 97.7 | AE11: 7 | AF11: 10 | AG11: =V11+X11+Z11+AB11+AD11 -> 417.9 | AH11: =W11+Y11+AA11+AC11+AE11+AF11 -> 57 | AI11: 8 | AJ11: 0 | AK11: 5 | AL11: -0.8 | AM11: 10 | AN11: 0 | AO11: 10 | AP11: =AJ11+AL11+AN11 -> -0.8 | AQ11: =AI11+AK11+AM11+AO11 -> 33 | AR11: 10 | AS11: 109.8 | AT11: 0 | AU11: 877 | AV11: 6 | AW11: 986.8 | AX11: =AR11+AT11+AV11 -> 16 | AY11: 5 | AZ11: 3 | BA11: 5 | BB11: 0 | BC11: 5 | BD11: =AZ11+BB11 -> 3 | BE11: =AY11+BA11+BC11 -> 15 | BF11: 0 | BG11: 5 | BH11: =BF11 -> 0 | BI11: =BG11 -> 5 | BJ11: 98.9 | BK11: 8 | BL11: 38 | BM11: 5 | BN11: 98 | BO11: 10 | BP11: 92 | BQ11: 7 | BR11: 7.3 | BS11: =BJ11+BL11+BN11+BP11 -> 326.9 | BT11: =BK11+BM11+BO11+BQ11+BR11 -> 37.3 | BU11: =U11+AH11+AQ11+AX11+BE11+BI11+BT11 -> 217.3 | BV11: 255 | BW11: =SUM(BU11/BV11)*100 -> 85.21568627
A12: 3 | B12: Отдел культуры | C12: 057 | D12: 0 | E12: 5 | F12: 0 | G12: 5 | H12: 0 | I12: 5 | J12: 100 | K12: 5 | L12: 96.2 | M12: 10 | N12: 98.5 | O12: 10 | P12: 100.3 | Q12: 4 | R12: 100 | S12: 10 | T12: 495 | U12: 54 | V12: 99.9 | W12: 10 | X12: 15.3 | Y12: 10 | Z12: 97.2 | AA12: 10 | AB12: 99.9 | AC12: 10 | AD12: 98.5 | AE12: 7 | AF12: 10 | AG12: 410.8 | AH12: 57 | AI12: 8 | AJ12: 0 | AK12: 5 | AL12: -8.7 | AM12: 10 | AN12: 0 | AO12: 10 | AP12: -8.7 | AQ12: 33 | AR12: 10 | AS12: 0 | AT12: 10 | AU12: 893 | AV12: 10 | AW12: 893 | AX12: 30 | AY12: 5 | AZ12: 2 | BA12: 5 | BB12: 0 | BC12: 5 | BD12: 2 | BE12: 15 | BF12: 0 | BG12: 5 | BH12: 0 | BI12: 5 | BJ12: 99.8 | BK12: 8 | BL12: 20.9 | BM12: 10 | BN12: 98.7 | BO12: 10 | BP12: 99.3 | BQ12: 7 | BR12: 8.7 | BS12: 318.7 | BT12: 43.7 | BU12: 237.7 | BV12: 255 | BW12: =SUM(BU12/BV12)*100 -> 93.21568627
B13: 2 группа
A14: 1 | B14: Финансовое управление | C14: 001 | D14: 0 | E14: 5 | F14: 0 | G14: 5 | H14: 0 | I14: 5 | J14: 100 | K14: 5 | L14: 100 | M14: 10 | N14: 96.7 | O14: 10 | P14: 105.7 | Q14: 8 | R14: 99.9 | S14: 10 | T14: 502.3 | U14: 58 | V14: 99.4 | W14: 10 | X14: 7 | Y14: 10 | Z14: 99.1 | AA14: 10 | AB14: 100 | AC14: 10 | AD14: 100 | AE14: 10 | AF14: 10 | AG14: 405.5 | AH14: 60 | AI14: 8 | AJ14: 0 | AK14: 5 | AL14: 0 | AM14: 10 | AN14: 0 | AO14: 10 | AP14: 0 | AQ14: 33 | AR14: 10 | AS14: 39.3 | AT14: 0 | AU14: 52.1 | AV14: 3 | AW14: 91.4 | AX14: 13 | AY14: 5 | AZ14: 10 | BA14: 5 | BB14: 0 | BC14: 5 | BD14: 10 | BE14: 15 | BF14: 0 | BG14: 5 | BH14: 0 | BI14: 5 | BU14: 184 | BV14: 205 | BW14: =SUM(BU14/BV14)*100 -> 89.75609756
A15: 2 | B15: Управление сельского хозяйства | C15: 082 | D15: 0 | E15: 5 | F15: 0 | G15: 5 | H15: 0 | I15: 5 | J15: 100 | K15: 5 | L15: 100 | M15: 10 | N15: 100 | O15: 10 | P15: 100.1 | Q15: 4 | R15: 99.9 | S15: 10 | T15: 500 | U15: 54 | V15: 100 | W15: 10 | X15: -68.6 | Y15: 10 | Z15: 100 | AA15: 10 | AB15: 100 | AC15: 10 | AD15: 82.7 | AE15: 7 | AF15: 10 | AG15: 314.1 | AH15: 57 | AI15: 8 | AJ15: 0 | AK15: 5 | AL15: 0 | AM15: 10 | AN15: 0 | AO15: 10 | AP15: 0 | AQ15: 33 | AR15: 10 | AS15: 325 | AT15: 0 | AU15: 164.2 | AV15: 6 | AW15: 489.2 | AX15: 16 | AY15: 5 | AZ15: 6 | BA15: 5 | BB15: 0 | BC15: 5 | BD15: 6 | BE15: 15 | BF15: 0 | BG15: 5 | BH15: 0 | BI15: 5 | BU15: 180 | BV15: 205 | BW15: =SUM(BU15/BV15)*100 -> 87.80487805

Sheet Лист2

Sheet Лист3
